[Event "41st Amateur D7"]
[Site "ChessGUI4"]
[Date "2013.07.03"]
[Round "2.1"]
[White "Gibbon 2.57a 64-bit"]
[Black "Carballo 0.8"]
[Result "1-0"]
[BlackElo "2273"]
[ECO "D38"]
[EventDate "2013.??.??"]
[TimeControl "40/1500:40/1500:40/1500"]
[WhiteElo "2251"]

{ i5 Quad } 1.d4 { [%eval 0,1] [%emt 0:00:00] } 1...Nf6
{ [%eval 0,1] [%emt 0:00:00] } 2.c4 { [%eval 0,1] [%emt 0:00:00] } 2...e6
{ [%eval 0,1] [%emt 0:00:00] } 3.Nf3 { [%eval 0,1] [%emt 0:00:00] } 3...d5
{ [%eval 0,1] [%emt 0:00:00] } 4.Nc3 { [%eval 0,1] [%emt 0:00:00] } 4...Bb4
{ [%eval 0,1] [%emt 0:00:00] } 5.cxd5 { [%eval 0,1] [%emt 0: 00:00] }
5...exd5 { [%eval 0,1] [%emt 0:00:00] } 6.Bg5 { [%eval 0,1] [%emt 0:00:00] }
6...h6 { [%eval 0,1] [%emt 0:00:00] } 7.Bxf6 { [%eval 0,1] [%emt 0:00:00] }
7...Qxf6 { [%eval 0,1] [%emt 0:00:00] } 8.Qa4+ { [%eval 0,1] [%emt 0:00:00] }
8...Nc6 { [%eval 0, 1] [%emt 0:00:00] } 9.e3 { [%eval 0,14] [%emt 0:01:49] }
9...O-O { [%eval 14,12] [%emt 0:00:37] (O-O) } 10.Be2
{ [%eval 7,14] [%emt 0:01:32] (Qb3) } 10...Qg6
{ [%eval 16,13] [%emt 0:00:36] (Bxc3) } 11.O-O
{ [%eval 8,14] [%emt 0:00:50] (Qb3) } 11...Bxc3
{ [%eval 11,14] [%emt 0:00:35] (Bh3) } 12.bxc3
{ [%eval 8,13] [%emt 0:00:06] (bxc3) } 12...Bh3
{ [%eval 8,13] [%emt 0:00:34] (Bh3) } 13.Ne1
{ [%eval 9,13] [%emt 0: 00:26] (Ne1) } 13...Rab8
{ [%eval -2,13] [%emt 0:00:33] (Rad8) } 14.c4
{ [%eval 14,13] [%emt 0:00:28] (Bd3) } 14...Be6
{ [%eval -13,13] [%emt 0:00:32] (Be6) } 15.Bd3
{ [%eval 14,13] [%emt 0:01:10] (Rc1) } 15...f5
{ [%eval 0,12] [%emt 0:00:32] (Qh5) } 16.Nf3
{ [%eval 46,12] [%emt 0:00:25] (Nf3) } 16...Kh8
{ [%eval 0,11] [%emt 0:00:31] (Qe8) } 17.c5
{ [%eval 51,13] [%emt 0:00:55] (Rac1) } 17...a6
{ [%eval -22,12] [%emt 0:00: 30] (Bd7) } 18.Rab1
{ [%eval 54,13] [%emt 0:00:30] (Rab1) } 18...Bd7
{ [%eval -15,12] [%emt 0:00:29] (Bd7) } 19.Qb3
{ [%eval 57,13] [%emt 0:00:44] (Qc2) } 19...Qe6
{ [%eval -9,13] [%emt 0:00:29] (Qe6) } 20.Rfe1
{ [%eval 56,13] [%emt 0:00:34] (a4) } 20...g5
{ [%eval -14,13] [%emt 0:00:28] (Rfe8) } 21.Qc3
{ [%eval 90,11] [%emt 0:00: 16] (h4) } 21...g4
{ [%eval -19,11] [%emt 0:00:27] (Kg8) } 22.Nh4
{ [%eval 112,12] [%emt 0:00:17] (Nh4) } 22...h5
{ [%eval -23,11] [%emt 0:00:26] (Qf6) } 23.g3
{ [%eval 132,13] [%emt 0:00:17] (Re2) } 23...Ne7
{ [%eval -41,13] [%emt 0:00:26] (Qf7) } 24.Rb3
{ [%eval 136,12] [%emt 0:00:19] (Ng2) } 24...Ng6
{ [%eval -43,12] [%emt 0:00:25] (Rf6) } 25.Nxg6+
{ [%eval 126,14] [%emt 0:00:36] (Ng2) } 25...Qxg6
{ [%eval -32,15] [%emt 0: 00:24] (Qxg6) } 26.Reb1
{ [%eval 108,14] [%emt 0:00:58] (Reb1) } 26...Qc6
{ [%eval -38, 13] [%emt 0:00:24] (Qc6) } 27.Qb2
{ [%eval 105,12] [%emt 0:00:32] (Qa5) } 27...Bc8
{ [%eval -32,14] [%emt 0:00:23] (Bc8) } 28.Qe2
{ [%eval 95,12] [%emt 0:00:30] (Qe2) } 28...Rf6
{ [%eval -39,12] [%emt 0:00:23] (Rf6) } 29.Qd2
{ [%eval 99,12] [%emt 0:00:15] (h4) } 29...Kg8
{ [%eval -24,11] [%emt 0:00:22] (Be6) } 30.Rb6
{ [%eval 141, 14] [%emt 0:00:15] (Ra3) } 30...cxb6
{ [%eval -63,17] [%emt 0:00:21] (cxb6) } 31.Rxb6
{ [%eval 148,14] [%emt 0:00:04] (Rxb6) } 31...Qxb6
{ [%eval -70,16] [%emt 0:00:21] (Qxb6) } 32.cxb6
{ [%eval 141,13] [%emt 0:00:03] (cxb6) } 32...Kf7
{ [%eval -70,14] [%emt 0:00:20] (Kf7) } 33.Qa5
{ [%eval 159,14] [%emt 0:00:16] (Qa5) } 33...Be6
{ [%eval -70,15] [%emt 0:00:20] (Be6) } 34.Kf1
{ [%eval 164,14] [%emt 0:00:11] (Kg2) } 34...Rh6
{ [%eval -46,13] [%emt 0:00:19] (Kg6) } 35.Qc5
{ [%eval 224,14] [%emt 0:00:11] (Kg2) } 35...Rc8
{ [%eval -104,15] [%emt 0:00:19] (Rhh8) } 36.Qd6
{ [%eval 233,15] [%emt 0:00:14] (Qd6) } 36...Rc1+
{ [%eval -103,14] [%emt 0:00:18] (Rc6) } 37.Ke2
{ [%eval 252,15] [%emt 0:00:15] (Kg2) } 37...Rc6
{ [%eval -136,13] [%emt 0:00:18] (Rc6) } 38.Qe5
{ [%eval 260,14] [%emt 0:00:17] (Qb8) } 38...Kg6
{ [%eval -80,14] [%emt 0:00:17] (Kg6) } 39.Bxa6
{ [%eval 255,15] [%emt 0:00:24] (Bxa6) } 39...Rh7
{ [%eval -101,15] [%emt 0:00:17] (Rh7) } 40.Bb5
{ [%eval 271,15] [%emt 0:00:20] (Bb5) } 40...Rxb6
{ [%eval -117,15] [%emt 0:00:17] (Rxb6) } 41.Be8+
{ [%eval 267,15] [%emt 0: 00:32] (a4) } 41...Bf7
{ [%eval -135,18] [%emt 0:00:54] (Bf7) } 42.Qxd5
{ [%eval 272, 15] [%emt 0:00:48] (f4) } 42...Bxe8
{ [%eval -131,16] [%emt 0:00:52] (Bxe8) } 43.Qg8+
{ [%eval 273,14] [%emt 0:00:07] (Qg8) } 43...Kh6
{ [%eval -134,14] [%emt 0:00:51] (Rg7) } 44.Qxe8
{ [%eval 320,15] [%emt 0:00:38] (Qxe8) } 44...Rg7
{ [%eval -156,14] [%emt 0: 00:50] (Rc7) } 45.f4
{ [%eval 315,16] [%emt 0:00:56] (Qe5) } 45...Rb2+
{ [%eval -189, 15] [%emt 0:00:48] (gxf3) } 46.Kd3
{ [%eval 384,17] [%emt 0:00:36] (Kd3) } 46...Rxh2
{ [%eval -189,15] [%emt 0:00:47] (Rxh2) } 47.Qe6+
{ [%eval 387,16] [%emt 0:00:23] (Qe6) } 47...Rg6
{ [%eval -196,14] [%emt 0:00:46] (Kh7) } 48.Qxf5
{ [%eval 426,16] [%emt 0:00:56] (Qxf5) } 48...Rg7
{ [%eval -227,13] [%emt 0:00:45] (Rg7) } 49.Qf8
{ [%eval 421,17] [%emt 0:01:34] (Qf8) } 49...Kh7
{ [%eval -303,14] [%emt 0:00:44] (Kh7) } 50.f5
{ [%eval 465,17] [%emt 0:01:09] (f5) } 50...Rf2
{ [%eval -293,14] [%emt 0:00:43] (Rf2) } 51.d5
{ [%eval 464,16] [%emt 0:00:32] (d5) } 51...Rd7
{ [%eval -347,13] [%emt 0:00:42] (h4) } 52.Ke4
{ [%eval 692,16] [%emt 0:00:38] (e4) } 52...b6
{ [%eval -350,12] [%emt 0:00:40] (h4) } 53.Qe8
{ [%eval 874,17] [%emt 0:00:41] (Qe8) } 53...Ra7
{ [%eval -678,15] [%emt 0:00:39] (Ra7) } 54.d6
{ [%eval 884,16] [%emt 0:00:20] (d6) } 54...Kg7
{ [%eval -658,14] [%emt 0:00:38] (Kg7) } 55.d7
{ [%eval 969,15] [%emt 0:00:20] (Qe5) } 55...Ra4+
{ [%eval -756,15] [%emt 0:00:37] (Ra4) } 56.Kd3
{ [%eval 998,16] [%emt 0:00:58] (Kd3) } 56...Ra3+
{ [%eval -763,14] [%emt 0:00:37] (Ra3) } 1-0

[Event "41st Amateur D7"]
[Site "ChessGUI4"]
[Date "2013.07.03"]
[Round "2.4"]
[White "FireFly 2.6.0 64-bit"]
[Black "MadChess 1.2"]
[Result "0-1"]
[BlackElo "2200"]
[ECO "A62"]
[EventDate "2013.??.??"]
[TimeControl "40/1500:40/1500:40/1500"]
[WhiteElo "2258"]

{ i5 Quad } 1.d4 { [%eval 0,1] [%emt 0:00:00] } 1...Nf6
{ [%eval 0,1] [%emt 0:00:00] } 2.c4 { [%eval 0,1] [%emt 0:00:00] } 2...e6
{ [%eval 0,1] [%emt 0:00:00] } 3.Nf3 { [%eval 0,1] [%emt 0:00:00] } 3...c5
{ [%eval 0,1] [%emt 0:00:00] } 4.d5 { [%eval 0,1] [%emt 0:00:00] } 4...d6
{ [%eval 0,1] [%emt 0:00:00] } 5.Nc3 { [%eval 0,1] [%emt 0:00: 00] } 5...exd5
{ [%eval 0,1] [%emt 0:00:00] } 6.cxd5 { [%eval 0,1] [%emt 0:00:00] } 6...g6
{ [%eval 0,1] [%emt 0:00:00] } 7.g3 { [%eval 0,1] [%emt 0:00:00] } 7...Bg7
{ [%eval 0, 1] [%emt 0:00:00] } 8.Bg2 { [%eval 0,1] [%emt 0:00:00] } 8...O-O
{ [%eval 0,1] [%emt 0:00:00] } 9.O-O { [%eval 47,11] [%emt 0:00:57] } 9...h6
{ [%eval -35,10] [%emt 0:00: 42] (Re8) } 10.Re1
{ [%eval 85,11] [%emt 0:00:56] (e4) } 10...Re8
{ [%eval -21,11] [%emt 0:00:45] (Re8) } 11.e4
{ [%eval 76,11] [%emt 0:00:56] (e4) } 11...Nbd7
{ [%eval -33,10] [%emt 0:00:21] (Bg4) } 12.Bf4
{ [%eval 74,11] [%emt 0:00:55] (Qb3) } 12...Nb6
{ [%eval -26,11] [%emt 0:00:34] (Ng4) } 13.Qc1
{ [%eval 81,11] [%emt 0:00:54] (Qc1) } 13...g5
{ [%eval -23,12] [%emt 0:00:36] (g5) } 14.Bxd6
{ [%eval 87,12] [%emt 0: 00:53] (Bxd6) } 14...Qxd6
{ [%eval -52,12] [%emt 0:00:29] (Qxd6) } 15.e5
{ [%eval 75, 13] [%emt 0:00:52] (e5) } 15...Qf8
{ [%eval -14,13] [%emt 0:00:43] (Qd8) } 16.exf6
{ [%eval 68,13] [%emt 0:00:52] (exf6) } 16...Rxe1+
{ [%eval -22,13] [%emt 0:00:32] (Rxe1) } 17.Qxe1
{ [%eval 58,12] [%emt 0:00:42] (Qxe1) } 17...Bxf6
{ [%eval -24,13] [%emt 0:00:40] (Bxf6) } 18.Qe4
{ [%eval 45,12] [%emt 0:00:42] (Qe4) } 18...Qd6
{ [%eval -28,13] [%emt 0:00:32] (Qd6) } 19.Nd2
{ [%eval 53,12] [%emt 0:00:41] (Qe8) } 19...Bd7
{ [%eval -24,12] [%emt 0:00:57] (Bxc3) } 20.Nc4
{ [%eval 29,12] [%emt 0:00:41] (Qd3) } 20...Nxc4
{ [%eval -24,12] [%emt 0:00:40] (Nxc4) } 21.Qxc4
{ [%eval 46,11] [%emt 0:00:41] (Qxc4) } 21...Qb6
{ [%eval -15,11] [%emt 0:00:18] (Bd4) } 22.Rb1
{ [%eval 46,11] [%emt 0:00:40] (b3) } 22...Bd4
{ [%eval -2,11] [%emt 0:00:39] (Re8) } 23.Qd3
{ [%eval 34,11] [%emt 0:00:40] (Qb3) } 23...f5
{ [%eval 19,11] [%emt 0:00:37] (Re8) } 24.Qc2
{ [%eval 34,10] [%emt 0:00:39] (Qd2) } 24...Re8
{ [%eval 18,11] [%emt 0: 00:59] (Re8) } 25.Rd1
{ [%eval 40,10] [%emt 0:00:39] (h3) } 25...g4
{ [%eval 21,9] [%emt 0:00:23] (Qd6) } 26.Bf1
{ [%eval 43,10] [%emt 0:00:39] (h3) } 26...a6
{ [%eval 15,11] [%emt 0:01:08] (Re7) } 27.Bd3
{ [%eval 46,11] [%emt 0:00:38] (Ne2) } 27...Rf8
{ [%eval 16,10] [%emt 0:00:24] (Re5) } 28.Be2
{ [%eval 20,10] [%emt 0:00:38] (Re1) } 28...f4
{ [%eval 74,11] [%emt 0:00:37] (Qd6) } 29.Kh1
{ [%eval -23,11] [%emt 0:00: 37] (gxf4) } 29...Bxf2
{ [%eval 109,11] [%emt 0:00:35] (Bxf2) } 30.gxf4
{ [%eval -74, 11] [%emt 0:00:29] (gxf4) } 30...Rxf4
{ [%eval 136,11] [%emt 0:00:23] (Rxf4) } 31.Bc4
{ [%eval -116,11] [%emt 0:00:29] (Rf1) } 31...Bd4
{ [%eval 143,11] [%emt 0:00:29] (Bd4) } 32.Re1
{ [%eval -148,11] [%emt 0:00:29] (Re1) } 32...Qd6
{ [%eval 216,11] [%emt 0: 00:36] (Qf6) } 33.Ne4
{ [%eval -259,11] [%emt 0:00:29] (Ne4) } 33...Qe5
{ [%eval 250, 13] [%emt 0:00:47] (Qe5) } 34.Qb1
{ [%eval -290,11] [%emt 0:00:29] (Qe2) } 34...Bf5
{ [%eval 306,13] [%emt 0:00:43] (Bf5) } 35.d6+
{ [%eval -279,12] [%emt 0:00:29] (d6) } 35...Kf8
{ [%eval 299,13] [%emt 0:00:48] (Kg7) } 36.Bd3
{ [%eval -339,12] [%emt 0:00:29] (Bd3) } 36...Bxb2
{ [%eval 286,13] [%emt 0:01:00] (Qd5) } 37.Nxc5
{ [%eval -209,11] [%emt 0:00:29] (Nxc5) } 37...Qd5+
{ [%eval 206,12] [%emt 0:00:40] (Qd5) } 38.Ne4
{ [%eval -277,11] [%emt 0:00:29] (Ne4) } 38...Bc3
{ [%eval 272,14] [%emt 0:01:45] (Bc3) } 39.Re2
{ [%eval -270,12] [%emt 0:00:29] (Re3) } 39...Bd4
{ [%eval 271,12] [%emt 0:00:59] (b5) } 40.Kg2
{ [%eval -283,11] [%emt 0:00:29] (Bc2) } 40...Bc5
{ [%eval 283,12] [%emt 0:01:02] (Bc5) } 41.d7
{ [%eval -303,11] [%emt 0:00:36] (d7) } 41...Bxd7
{ [%eval 272,12] [%emt 0:00:37] (Ke7) } 42.Qc1
{ [%eval -270,11] [%emt 0:00:36] (Qc1) } 42...Bd6
{ [%eval 309,13] [%emt 0:00:59] (Bd6) } 43.Qd2
{ [%eval -361,11] [%emt 0:00:36] (Bc4) } 43...Bc6
{ [%eval 369,13] [%emt 0:01:04] (Bc6) } 44.Rf2
{ [%eval -362,11] [%emt 0:00:36] (Rf2) } 44...Rxf2+
{ [%eval 364,14] [%emt 0: 01:08] (Qf7) } 45.Qxf2+
{ [%eval -370,10] [%emt 0:00:36] (Qxf2) } 45...Ke8
{ [%eval 378,13] [%emt 0:00:29] (Qf7) } 46.Qe2
{ [%eval -363,12] [%emt 0:00:36] (Qe2) } 46...h5
{ [%eval 402,13] [%emt 0:01:16] (Qd4) } 47.h3
{ [%eval -370,11] [%emt 0:00:37] (Kf1) } 47...Kd8
{ [%eval 401,13] [%emt 0:00:48] (Qg5) } 48.hxg4
{ [%eval -400,12] [%emt 0:00:36] (hxg4) } 48...hxg4
{ [%eval 411,13] [%emt 0:00:46] (hxg4) } 49.Kg1
{ [%eval -415,12] [%emt 0:00:36] (Kg1) } 49...Qd4+
{ [%eval 451,14] [%emt 0:01:20] (Bc5) } 50.Kg2
{ [%eval -466,12] [%emt 0:00:36] (Kg2) } 50...g3
{ [%eval 466,13] [%emt 0:00: 21] (g3) } 51.a4
{ [%eval -476,12] [%emt 0:00:36] (a4) } 51...Qxa4
{ [%eval 517,13] [%emt 0:00:27] (a5) } 52.Qe3
{ [%eval -530,11] [%emt 0:00:36] (Kh3) } 52...Qa2+
{ [%eval 611,13] [%emt 0:00:39] (Qa2) } 53.Kf1
{ [%eval -644,11] [%emt 0:00:36] (Kf1) } 53...Qh2
{ [%eval 622,13] [%emt 0:00:22] (Qh2) } 54.Qf3
{ [%eval -670,12] [%emt 0:00:36] (Qf3) } 54...Kc7
{ [%eval 689,13] [%emt 0:00:24] (Bd7) } 0-1

[Event "41st Amateur D7"]
[Site "ChessGUI4"]
[Date "2013.07.03"]
[Round "2.5"]
[White "ChessKiss 1.7 64-bit"]
[Black "Shallow 1.0 64-bit"]
[Result "0-1"]
[BlackElo "2200"]
[ECO "D45"]
[EventDate "2013.??.??"]
[TimeControl "40/1500:40/1500:40/1500"]
[WhiteElo "2214"]

{ i5 Quad } 1.d4 { [%eval 0,1] [%emt 0:00:00] } 1...d5
{ [%eval 0,1] [%emt 0:00:00] } 2.c4 { [%eval 0,1] [%emt 0:00:00] } 2...c6
{ [%eval 0,1] [%emt 0:00:00] } 3.Nc3 { [%eval 0,1] [%emt 0:00:00] } 3...Nf6
{ [%eval 0,1] [%emt 0:00:00] } 4.e3 { [%eval 0,1] [%emt 0:00:00] } 4...e6
{ [%eval 0,1] [%emt 0:00:00] } 5.Nf3 { [%eval 0,1] [%emt 0:00: 00] } 5...a6
{ [%eval 0,1] [%emt 0:00:00] } 6.c5 { [%eval 0,1] [%emt 0:00:00] } 6...Nbd7
{ [%eval 0,1] [%emt 0:00:00] } 7.b4 { [%eval 0,1] [%emt 0:00:00] } 7...g6
{ [%eval 0,1] [%emt 0:00:00] } 8.Bb2 { [%eval 0,1] [%emt 0:00:00] } 8...Bg7
{ [%eval 0,1] [%emt 0: 00:00] } 9.Bd3 { [%eval 17,13] [%emt 0:00:43] }
9...Qe7 { [%eval -26,13] [%emt 0:00: 42] (O-O) } 10.O-O
{ [%eval 34,12] [%emt 0:00:41] (O-O) } 10...O-O
{ [%eval -28,13] [%emt 0:00:42] (O-O) } 11.Re1
{ [%eval 34,11] [%emt 0:00:40] (Re1) } 11...a5
{ [%eval -23,13] [%emt 0:00:42] (Re8) } 12.Qa4
{ [%eval 35,10] [%emt 0:00:39] (a3) } 12...b5
{ [%eval -22,14] [%emt 0:00:42] (e5) } 13.Qa3
{ [%eval 15,12] [%emt 0:00:38] (Qa3) } 13...a4
{ [%eval -19,14] [%emt 0:00:42] (Ng4) } 14.Re2
{ [%eval 15,12] [%emt 0:00: 39] (Rac1) } 14...Ra7
{ [%eval -12,14] [%emt 0:00:42] (Bb7) } 15.Rf1
{ [%eval 33,12] [%emt 0:00:36] (e4) } 15...Ba6
{ [%eval -15,14] [%emt 0:00:42] (Qd8) } 16.Bc1
{ [%eval 49,13] [%emt 0:00:34] (e4) } 16...Bb7
{ [%eval -21,14] [%emt 0:00:42] (Qe8) } 17.e4
{ [%eval 60,14] [%emt 0:00:37] (e4) } 17...dxe4
{ [%eval -28,14] [%emt 0:00:42] (dxe4) } 18.Bxe4
{ [%eval 71,13] [%emt 0:00:33] (Bxe4) } 18...Nxe4
{ [%eval -30,13] [%emt 0:00:42] (Nxe4) } 19.Nxe4
{ [%eval 83,13] [%emt 0:00:32] (Nxe4) } 19...Qd8
{ [%eval -42,13] [%emt 0:00:42] (h6) } 20.Bg5
{ [%eval 95,13] [%emt 0:00:30] (Bg5) } 20...f6
{ [%eval -50,14] [%emt 0:00:42] (f6) } 21.Bd2
{ [%eval 95,12] [%emt 0:00:30] (Bf4) } 21...Nb8
{ [%eval -47,13] [%emt 0:00:42] (Re8) } 22.Nd6
{ [%eval 88,13] [%emt 0:00:29] (Nd6) } 22...Bc8
{ [%eval -48,14] [%emt 0:00:42] (Bc8) } 23.Qc1
{ [%eval 87, 12] [%emt 0:00:28] (Rfe1) } 23...Na6
{ [%eval -44,15] [%emt 0:00:42] (Na6) } 24.a3
{ [%eval 85,13] [%emt 0:00:26] (a3) } 24...Nc7
{ [%eval -46,15] [%emt 0:00:42] (g5) } 25.Bh6
{ [%eval 79,13] [%emt 0:00:23] (Bf4) } 25...Nd5
{ [%eval -42,15] [%emt 0:00:42] (Nd5) } 26.Rfe1
{ [%eval 64,12] [%emt 0:00:26] (Bxg7) } 26...Bxh6
{ [%eval -42,15] [%emt 0:00:42] (Bxh6) } 27.Qxh6
{ [%eval 78,13] [%emt 0:00:25] (Qxh6) } 27...Re7
{ [%eval -41,14] [%emt 0:00:42] (Bd7) } 28.Re4
{ [%eval 84,11] [%emt 0:00:24] (Rd2) } 28...Bd7
{ [%eval -39,13] [%emt 0:00:42] (Bd7) } 29.Kh1
{ [%eval 54,11] [%emt 0:00:23] (Qh4) } 29...Rg7
{ [%eval -38,12] [%emt 0:00:42] (Rg7) } 30.Qh4
{ [%eval 45, 11] [%emt 0:00:23] (Rc1) } 30...g5
{ [%eval 113,14] [%emt 0:00:42] (g5) } 31.Qg3
{ [%eval -84,13] [%emt 0:00:21] (Qg3) } 31...f5
{ [%eval 169,15] [%emt 0:00:42] (f5) } 32.Rxe6
{ [%eval -160,12] [%emt 0:00:14] (Rxe6) } 32...f4
{ [%eval 143,15] [%emt 0:00: 42] (f4) } 33.Qg4
{ [%eval -167,13] [%emt 0:00:22] (Qg4) } 33...Nc7
{ [%eval 150,14] [%emt 0:00:42] (Nc7) } 34.d5
{ [%eval -156,13] [%emt 0:00:18] (d5) } 34...cxd5
{ [%eval 152,14] [%emt 0:00:42] (cxd5) } 35.Nd4
{ [%eval -149,11] [%emt 0:00:11] (Nd4) } 35...Rf6
{ [%eval 161,14] [%emt 0:00:42] (Nxe6) } 36.N6f5
{ [%eval -144,11] [%emt 0:00:23] (N6f5) } 36...Bxe6
{ [%eval 174,15] [%emt 0:00:42] (Bxe6) } 37.Nxe6
{ [%eval -183,13] [%emt 0:00:26] (Nxe6) } 37...Nxe6
{ [%eval 176,16] [%emt 0:00:42] (Nxe6) } 38.Nxg7
{ [%eval -195,14] [%emt 0:00:18] (Nxg7) } 38...Nxg7
{ [%eval 200,15] [%emt 0:00:42] (Nxg7) } 39.Qxg5
{ [%eval -222,13] [%emt 0:00:18] (Qxg5) } 39...Rf8
{ [%eval 201,15] [%emt 0:00:42] (Rf8) } 40.Qh6
{ [%eval -245,13] [%emt 0:00:17] (Qh6) } 40...Qf6
{ [%eval 202,16] [%emt 0:00:42] (Qd7) } 41.Qxf6
{ [%eval -242,17] [%emt 0:00:58] (Qxf6) } 41...Rxf6
{ [%eval 204,16] [%emt 0:00:37] (Rxf6) } 42.Rd1
{ [%eval -229,15] [%emt 0:00:45] (Rd1) } 42...Rf5
{ [%eval 204,16] [%emt 0:00:37] (Rf5) } 43.Kg1
{ [%eval -247,15] [%emt 0:00:56] (f3) } 43...Kf7
{ [%eval 207,16] [%emt 0:00: 37] (Ne6) } 44.Kf1
{ [%eval -257,15] [%emt 0:00:55] (f3) } 44...Ke6
{ [%eval 211,13] [%emt 0:00:37] (Ne6) } 45.g4
{ [%eval -261,15] [%emt 0:00:53] (Re1) } 45...fxg3
{ [%eval 226,15] [%emt 0:00:37] (Rg5) } 46.hxg3
{ [%eval -370,17] [%emt 0:00:52] (hxg3) } 46...Rf3
{ [%eval 233,15] [%emt 0:00:37] (Rf3) } 47.Re1+
{ [%eval -347,16] [%emt 0:00:51] (Ra1) } 47...Kf5
{ [%eval 236,14] [%emt 0:00:37] (Kd7) } 48.Re3
{ [%eval -347,15] [%emt 0:00:49] (Rd1) } 48...Rxe3
{ [%eval 335,18] [%emt 0:00:37] (Rxe3) } 49.fxe3
{ [%eval -533,17] [%emt 0:00:47] (fxe3) } 49...Ke4
{ [%eval 364,17] [%emt 0:00:37] (Ne6) } 50.Ke2
{ [%eval -766,18] [%emt 0:00:46] (Kf2) } 50...Nf5
{ [%eval 410,18] [%emt 0:00:37] (Ne6) } 51.g4
{ [%eval -682,17] [%emt 0:00:45] (g4) } 51...Nxe3
{ [%eval 415,18] [%emt 0:00:37] (Nxe3) } 52.c6
{ [%eval -799,18] [%emt 0:00:43] (c6) } 52...Nc4
{ [%eval 507,18] [%emt 0:00:37] (Nc4) } 53.Kf2
{ [%eval -1254,16] [%emt 0:00:42] (c7) } 53...Ke5
{ [%eval 538,16] [%emt 0:00:37] (d4) } 54.c7
{ [%eval -1128,19] [%emt 0:00:41] (c7) } 54...Nb6
{ [%eval 556,18] [%emt 0:00: 37] (Nb6) } 55.Ke3
{ [%eval -1115,18] [%emt 0:00:40] (Kf3) } 55...Kd6
{ [%eval 560,17] [%emt 0:00:37] (Kd6) } 0-1